{"text_format":"1","workbook":"xlsx","n_sheets":3,"sheets":["Лист1","Лист2","Лист3"],"not_rendered":{"charts":0,"images":0,"macros":1,"external_links":0,"defined_names":0,"comments":0,"pivot_tables":0},"unopened":[],"bounds":{"document_bytes":16777216,"sheet_cells":100000,"rows_first":2000,"rows_last":500,"rows_between":2000,"halvings":0,"cell_chars":16384,"cell_head_chars":4096},"cells_cut":0,"cells_raw":0,"read":"whole","date_system":"1900"}

{"sheet":"Лист1","index":0,"n_rows":43,"n_cols":5,"rows_kept":43,"cut":false,"hidden":false,"merged":[]}
["Аромалампы магазин от 169 р.","Аромалампы магазин от 169 р.",null,{"$f":"MID(A1,1,LOOKUP(35,SEARCH(\" \",A1&\" \",ROW($1:$35))))","v":"Аромалампы магазин от 169 р."},{"$f":"TRIM(SUBSTITUTE(A1,D1,\"\"))","v":""}]
["Покупайте аромалампу в магазине от 169 р.","Покупайте аромалампу в магазине "," от 169 р.",{"$f":"MID(A2,1,LOOKUP(35,SEARCH(\" \",A2&\" \",ROW($1:$35))))","v":"Покупайте аромалампу в магазине от "},{"$f":"TRIM(SUBSTITUTE(A2,D2,\"\"))","v":"169 р."}]
["Аромалампы в интернет-магазине от 169 р.","Аромалампы в интернет-магазине "," от 169 р.",{"$f":"MID(A3,1,LOOKUP(35,SEARCH(\" \",A3&\" \",ROW($1:$35))))","v":"Аромалампы в интернет-магазине от "},"169 р."]
["Покупайте аромалампу в интернет-магазине от 169 р.","Покупайте аромалампу в "," интернет-магазине от 169 р.",{"$f":"MID(A4,1,LOOKUP(35,SEARCH(\" \",A4&\" \",ROW($1:$35))))","v":"Покупайте аромалампу в "},"интернет-магазине от 169 р."]
["Покупайте электрические аромалампы от 169 р.","Покупайте электрические аромалампы "," от 169 р.",{"$f":"MID(A5,1,LOOKUP(35,SEARCH(\" \",A5&\" \",ROW($1:$35))))","v":"Покупайте электрические аромалампы "},"от 169 р."]
["Магазин аромаламп в Москве от 169 р.","Магазин аромаламп в Москве "," от 169 р."," р.","Магазин аромаламп в Москве от 169"]
["Покупайте аромалампу в интернет-магазине от 169 р.","Покупайте аромалампу в "," интернет-магазине от 169 р.",{"$f":"MID(A7,1,LOOKUP(35,SEARCH(\" \",A7&\" \",ROW($1:$35))))","v":"Покупайте аромалампу в "},"интернет-магазине от 169 р."]
["Аромалампа для эфирных масел от 169 р.","Аромалампа для эфирных масел "," от 169 р.",{"$f":"MID(A8,1,LOOKUP(35,SEARCH(\" \",A8&\" \",ROW($1:$35))))","v":"Аромалампа для эфирных масел от "},"169 р."]
["Покупайте аромалампа для эфирных масел от 169 р.","Покупайте аромалампа для эфирных "," масел от 169 р.",{"$f":"MID(A9,1,LOOKUP(35,SEARCH(\" \",A9&\" \",ROW($1:$35))))","v":"Покупайте аромалампа для эфирных "},"масел от 169 р."]
["Аромалампы электрические для эфирных масел от 169 р.","Аромалампы электрические для "," эфирных масел от 169 р.",{"$f":"MID(A10,1,LOOKUP(35,SEARCH(\" \",A10&\" \",ROW($1:$35))))","v":"Аромалампы электрические для "},"эфирных масел от 169 р."]
["Аромалампа для эфирных масел электрическая от 169 р.","Аромалампа для эфирных масел "," электрическая от 169 р.",{"$f":"MID(A11,1,LOOKUP(35,SEARCH(\" \",A11&\" \",ROW($1:$35))))","v":"Аромалампа для эфирных масел "},"электрическая от 169 р."]
["Аромалампа для эфирных масел в Москве от 169 р.","Аромалампа для эфирных масел в "," Москве от 169 р.",{"$f":"MID(A12,1,LOOKUP(35,SEARCH(\" \",A12&\" \",ROW($1:$35))))","v":"Аромалампа для эфирных масел в "},"Москве от 169 р."]
["Ароматическая лампа для эфирных масел от 169 р.","Ароматическая лампа для эфирных "," масел от 169 р.",{"$f":"MID(A13,1,LOOKUP(35,SEARCH(\" \",A13&\" \",ROW($1:$35))))","v":"Ароматическая лампа для эфирных "},"масел от 169 р."]
["Лампа для эфирных масел от 169 р.","Лампа для эфирных масел от 169 р.",null,{"$f":"MID(A14,1,LOOKUP(35,SEARCH(\" \",A14&\" \",ROW($1:$35))))","v":"Лампа для эфирных масел от 169 р."},""]
["Аромакулоны от 58 р.","Аромакулоны от 58 р.",null,{"$f":"MID(A15,1,LOOKUP(35,SEARCH(\" \",A15&\" \",ROW($1:$35))))","v":"Аромакулоны от 58 р."},""]
["Покупайте аромакулон от 58 р.","Покупайте аромакулон от 58 р.",null,{"$f":"MID(A16,1,LOOKUP(35,SEARCH(\" \",A16&\" \",ROW($1:$35))))","v":"Покупайте аромакулон от 58 р."},""]
["Аромакулон в Москве от 58 р.","Аромакулон в Москве от 58 р.",null,{"$f":"MID(A17,1,LOOKUP(35,SEARCH(\" \",A17&\" \",ROW($1:$35))))","v":"Аромакулон в Москве от 58 р."},""]
["Покупайте аромакулон в Москве от 58 р.","Покупайте аромакулон в Москве "," от 58 р.",{"$f":"MID(A18,1,LOOKUP(35,SEARCH(\" \",A18&\" \",ROW($1:$35))))","v":"Покупайте аромакулон в Москве от "},"58 р."]
["Аромакулоны из камня от 58 р.","Аромакулоны из камня от 58 р.",null,{"$f":"MID(A19,1,LOOKUP(35,SEARCH(\" \",A19&\" \",ROW($1:$35))))","v":"Аромакулоны из камня от 58 р."},""]
["Магазин аромакулонов от 58 р.","Магазин аромакулонов от 58 р.",null,{"$f":"MID(A20,1,LOOKUP(35,SEARCH(\" \",A20&\" \",ROW($1:$35))))","v":"Магазин аромакулонов от 58 р."},""]
["Аромакулон из натурального камня от 58 р.","Аромакулон из натурального камня "," от 58 р.",{"$f":"MID(A21,1,LOOKUP(35,SEARCH(\" \",A21&\" \",ROW($1:$35))))","v":"Аромакулон из натурального камня "},"от 58 р."]
["Аромакулоны в интернет-магазине от 58 р.","Аромакулоны в интернет-магазине "," от 58 р.",{"$f":"MID(A22,1,LOOKUP(35,SEARCH(\" \",A22&\" \",ROW($1:$35))))","v":"Аромакулоны в интернет-магазине от "},"58 р."]
["Покупайте аромакулоны от 58 р.","Покупайте аромакулоны от 58 р.",null,{"$f":"MID(A23,1,LOOKUP(35,SEARCH(\" \",A23&\" \",ROW($1:$35))))","v":"Покупайте аромакулоны от 58 р."},""]
["Покупайте аромакулон от сглаза за 58 р.","Покупайте аромакулон от сглаза "," за 58 р.",{"$f":"MID(A24,1,LOOKUP(35,SEARCH(\" \",A24&\" \",ROW($1:$35))))","v":"Покупайте аромакулон от сглаза за "},"58 р."]
["Покупайте аромакулоны на шею от 58 р.","Покупайте аромакулоны на шею "," от 58 р.",{"$f":"MID(A25,1,LOOKUP(35,SEARCH(\" \",A25&\" \",ROW($1:$35))))","v":"Покупайте аромакулоны на шею от 58 "},"р."]
["Покупайте аромакулон детский от 58 р.","Покупайте аромакулон детский "," от 58 р.",{"$f":"MID(A26,1,LOOKUP(35,SEARCH(\" \",A26&\" \",ROW($1:$35))))","v":"Покупайте аромакулон детский от 58 "},"р."]
["Аромадиффузор от 179 р.","Аромадиффузор от 179 р.",null,{"$f":"MID(A27,1,LOOKUP(35,SEARCH(\" \",A27&\" \",ROW($1:$35))))","v":"Аромадиффузор от 179 р."},""]
["Покупайте аромадиффузор от 179 р.","Покупайте аромадиффузор от 179 р.",null,{"$f":"MID(A28,1,LOOKUP(35,SEARCH(\" \",A28&\" \",ROW($1:$35))))","v":"Покупайте аромадиффузор от 179 р."},""]
["Аромадиффузор с палочками от 179 р.","Аромадиффузор с палочками "," от 179 р.",{"$f":"MID(A29,1,LOOKUP(35,SEARCH(\" \",A29&\" \",ROW($1:$35))))","v":"Аромадиффузор с палочками от 179 "},"р."]
["Аромадиффузоры электрические от 179 р.","Аромадиффузоры электрические "," от 179 р.",{"$f":"MID(A30,1,LOOKUP(35,SEARCH(\" \",A30&\" \",ROW($1:$35))))","v":"Аромадиффузоры электрические от "},"179 р."]
["Аромадиффузор в Москве от 179 р.","Аромадиффузор в Москве от 179 р.",null,{"$f":"MID(A31,1,LOOKUP(35,SEARCH(\" \",A31&\" \",ROW($1:$35))))","v":"Аромадиффузор в Москве от 179 р."},""]
["Покупайте аромадиффузор в Москве от 179 р.","Покупайте аромадиффузор в Москве "," от 179 р.",{"$f":"MID(A32,1,LOOKUP(35,SEARCH(\" \",A32&\" \",ROW($1:$35))))","v":"Покупайте аромадиффузор в Москве "},"от 179 р."]
["Покупайте аромадиффузор с палочками от 179 р.","Покупайте аромадиффузор с палочками "," от 179 р.",{"$f":"MID(A33,1,LOOKUP(35,SEARCH(\" \",A33&\" \",ROW($1:$35))))","v":"Покупайте аромадиффузор с "},"палочками от 179 р."]
["Аромадиффузоры для дома от 179 р.","Аромадиффузоры для дома от 179 р.",null,{"$f":"MID(A34,1,LOOKUP(35,SEARCH(\" \",A34&\" \",ROW($1:$35))))","v":"Аромадиффузоры для дома от 179 р."},""]
["Покупайте аромадиффузор электрический от 179 р.","Покупайте аромадиффузор "," электрический от 179 р.",{"$f":"MID(A35,1,LOOKUP(35,SEARCH(\" \",A35&\" \",ROW($1:$35))))","v":"Покупайте аромадиффузор "},"электрический от 179 р."]
["Ароматические масла от 179 р.","Ароматические масла от 179 р.",null,{"$f":"MID(A36,1,LOOKUP(35,SEARCH(\" \",A36&\" \",ROW($1:$35))))","v":"Ароматические масла от 179 р."},""]
["Покупайте ароматические масла от 179 р.","Покупайте ароматические масла "," от 179 р.",{"$f":"MID(A37,1,LOOKUP(35,SEARCH(\" \",A37&\" \",ROW($1:$35))))","v":"Покупайте ароматические масла от "},"179 р."]
["Покупайте ароматические масла от 179 р.","Покупайте ароматические масла "," от 179 р.",{"$f":"MID(A38,1,LOOKUP(35,SEARCH(\" \",A38&\" \",ROW($1:$35))))","v":"Покупайте ароматические масла от "},"179 р."]
["Диффузор для эфирных масел от 179 р.","Диффузор для эфирных масел "," от 179 р.",{"$f":"MID(A39,1,LOOKUP(35,SEARCH(\" \",A39&\" \",ROW($1:$35))))","v":"Диффузор для эфирных масел от 179 "},"р."]
["Покупайте диффузор для эфирных масел от 179 р.","Покупайте диффузор для эфирных "," масел от 179 р.",{"$f":"MID(A40,1,LOOKUP(35,SEARCH(\" \",A40&\" \",ROW($1:$35))))","v":"Покупайте диффузор для эфирных "},"масел от 179 р."]
["Ароматизатор из эфирного масла от 179 р.","Ароматизатор из эфирного масла "," от 179 р.",{"$f":"MID(A41,1,LOOKUP(35,SEARCH(\" \",A41&\" \",ROW($1:$35))))","v":"Ароматизатор из эфирного масла от "},"179 р."]
["Эфирные масла для жирных волос от 209 р.","Эфирные масла для жирных волос "," от 209 р.",{"$f":"MID(A42,1,LOOKUP(35,SEARCH(\" \",A42&\" \",ROW($1:$35))))","v":"Эфирные масла для жирных волос от "},"209 р."]
["Эфирные масла для жирной кожи лица от 209 р.","Эфирные масла для жирной кожи лица "," от 209 р.",{"$f":"MID(A43,1,LOOKUP(35,SEARCH(\" \",A43&\" \",ROW($1:$35))))","v":"Эфирные масла для жирной кожи лица "},"от 209 р."]

{"sheet":"Лист2","index":1,"n_rows":0,"n_cols":0,"rows_kept":0,"cut":false,"hidden":false,"merged":[]}

{"sheet":"Лист3","index":2,"n_rows":0,"n_cols":0,"rows_kept":0,"cut":false,"hidden":false,"merged":[]}